{"text_format":"1","workbook":"xlsx","n_sheets":5,"sheets":["Deckblatt","über 3,5 - 8,5 t","über 8,5 - 18 t","über 18 - 26 t","über 26 t"],"not_rendered":{"charts":0,"images":1,"macros":1,"external_links":0,"defined_names":0,"comments":0,"pivot_tables":0},"unopened":[],"bounds":{"document_bytes":16777216,"sheet_cells":100000,"rows_first":2000,"rows_last":500,"rows_between":2000,"halvings":0,"cell_chars":16384,"cell_head_chars":4096},"cells_cut":0,"cells_raw":0,"read":"whole","date_system":"1900"}

{"sheet":"Deckblatt","index":0,"n_rows":30,"n_cols":10,"rows_kept":30,"cut":false,"hidden":false,"merged":[[26,1,26,10],[29,2,29,3],[29,8,29,9],[17,1,17,10],[19,3,19,9],[21,3,21,9],[9,9,9,10],[23,4,23,5],[14,1,14,10],[13,1,13,10],[15,1,15,10],[16,1,16,3]]}
[]
[]
[]
[]
[]
[]
[]
[]
[]
[null,null,null,"Année civile",null,null,null,null,null,"Vers. 2024"]
[null,null,null,"(période fiscale)"]
[]
[]
[null,"Déclaration pour le remboursement de la RPLF concernant les véhicules utilisés aussi en trafic de ligne (tableaux 2 à 5)"]
[null,"Remarque: n'en font notamment pas partie les courses d'essai, les transports scolaires, ainsi que les parcours effectués en                                         vue de l'entretien ou du contrôle du véhicule."]
[null,"La déclaration doit être déposée à l'Office fédéral de la douane et de la sécurité des frontières OFDF, Redevances sur la circulation,"]
[null,"lation, 3003 Berne, pour le 3 juin",null,null,null,", faute de quoi la demande de remboursement sera rejetée (art. 78 ORPL)."]
[]
[]
[null,"Maison:"]
[]
[null,"Adresse :"]
[]
[null,"Nombre de véhicules:",null,null,null,null,null,null,"Totale: ",{"$f":"IF('über 3,5 - 8,5 t'!L123+'über 8,5 - 18 t'!L125+'über 18 - 26 t'!L129+'über 26 t'!L129<10.01,0,'über 3,5 - 8,5 t'!L123+'über 8,5 - 18 t'!L125+'über 18 - 26 t'!L129+'über 26 t'!L129)","v":0}]
[null,"(poids total dépassant 3,5 t)"]
[]
[null,"J'atteste que les données figurant dans la déclaration ci-dessus sont correctes et conformes aux dossiers. Je prends connaissance du fait qu'une fausse déclaration constitue une infraction au sens de l'art. 20, al. 1, LRPL."]
[]
[]
[null,"Date :",null,null,null,null,"Signature:"]

{"sheet":"über 3,5 - 8,5 t","index":1,"n_rows":123,"n_cols":12,"rows_kept":123,"cut":false,"hidden":false,"merged":[]}
[]
[]
[]
[]
[]
["Déclaration pour le remboursement pour véhicules d'un poids total de plus de 3,5 t jusqu'à 8,5 t au taux de 2200 fr"]
[]
["N° matricule","Plaque de","Marque ","Km au 1.1","Km au 31.12","Kilomé-","Km en","Pourcen-","immatriculé",null,"Total "]
["selon permis","contrôle",null,"ou lors de","ou lors mise","trage","service ","tage","du","au","jours","Montant"]
["de circulation",null,null,"l'immatric.","hors circul.","annuel","de ligne",null,"(J.M.A. 1)"]
[null,null,null,null,null,{"$f":"E11-D11","v":0},null,{"$f":" IF(F11>0,ROUNDUP(G11/F11,6),0)","v":0},null,null,{"$f":"IF(SUM(J11-I11+1)>365,365,SUM(J11-I11+1))","v":1},{"$f":"ROUNDUP(K11*2200*H11/365*20,0)/20","v":0}]
[null,null,null,null,null,{"$f":"E12-D12","v":0},null,0,null,null,1,{"$f":"ROUNDUP(K12*2200*H12/365*20,0)/20","v":0}]
[null,null,null,null,null,0,null,0,null,null,1,{"$f":"ROUNDUP(K13*2200*H13/365*20,0)/20","v":0}]
[null,null,null,null,null,0,null,0,null,null,1,0]
[null,null,null,null,null,0,null,0,null,null,1,0]
[null,null,null,null,null,0,null,0,null,null,1,0]
[null,null,null,null,null,0,null,0,null,null,1,0]
[null,null,null,null,null,{"$f":"E18-D18","v":0},null,{"$f":" IF(F18>0,ROUNDUP(G18/F18,6),0)","v":0},null,null,{"$f":"IF(SUM(J18-I18+1)>365,365,SUM(J18-I18+1))","v":1},0]
[null,null,null,null,null,{"$f":"E19-D19","v":0},null,{"$f":" IF(F19>0,ROUNDUP(G19/F19,6),0)","v":0},null,null,{"$f":"IF(SUM(J19-I19+1)>365,365,SUM(J19-I19+1))","v":1},0]
[null,null,null,null,null,{"$f":"E20-D20","v":0},null,{"$f":" IF(F20>0,ROUNDUP(G20/F20,6),0)","v":0},null,null,{"$f":"IF(SUM(J20-I20+1)>365,365,SUM(J20-I20+1))","v":1},0]
[null,null,null,null,null,{"$f":"E21-D21","v":0},null,{"$f":" IF(F21>0,ROUNDUP(G21/F21,6),0)","v":0},null,null,{"$f":"IF(SUM(J21-I21+1)>365,365,SUM(J21-I21+1))","v":1},0]
[null,null,null,null,null,{"$f":"E22-D22","v":0},null,{"$f":" IF(F22>0,ROUNDUP(G22/F22,6),0)","v":0},null,null,{"$f":"IF(SUM(J22-I22+1)>365,365,SUM(J22-I22+1))","v":1},0]
[null,null,null,null,null,0,null,0,null,null,1,0]
[null,null,null,null,null,0,null,0,null,null,1,0]
[null,null,null,null,null,0,null,0,null,null,1,0]
[null,null,null,null,null,0,null,0,null,null,1,0]
[null,null,null,null,null,0,null,0,null,null,1,0]
[null,null,null,null,null,0,null,0,null,null,1,0]
[null,null,null,null,null,0,null,0,null,null,1,0]
[null,null,null,null,null,0,null,0,null,null,1,0]
[null,null,null,null,null,0,null,0,null,null,1,0]
[null,null,null,null,null,0,null,0,null,null,1,0]
[null,null,null,null,null,0,null,0,null,null,1,0]
[null,null,null,null,null,0,null,0,null,null,1,0]
[null,null,null,null,null,0,null,0,null,null,1,{"$f":"ROUNDUP(K35*2200*H35/365*20,0)/20","v":0}]
[]
["1) = jour, mois, année",null,null,null,null,null,null,null,null,"Total",null,{"$f":"SUM(L11:L35)","v":0}]
[]
[]
[]
["N° matricule","Plaque de","Marque ","Km au 1.1","Km au 31.12","Kilomé-","Km en","Pourcen-","immatriculé",null,"Total "]
["selon permis","contrôle",null,"ou lors de","ou lors mise","trage","service ","tage","du","au","jours","Montant"]
["de circulation",null,null,"l'immatric.","hors circul.","annuel","de ligne",null,"(J.M.A. 1)"]
[null,null,null,null,null,{"$f":"E44-D44","v":0},null,{"$f":" IF(F44>0,ROUNDUP(G44/F44,6),0)","v":0},null,null,{"$f":"IF(SUM(J44-I44+1)>365,365,SUM(J44-I44+1))","v":1},{"$f":"ROUNDUP(K44*2200*H44/365*20,0)/20","v":0}]
[null,null,null,null,null,{"$f":"E45-D45","v":0},null,{"$f":" IF(F45>0,ROUNDUP(G45/F45,6),0)","v":0},null,null,{"$f":"IF(SUM(J45-I45+1)>365,365,SUM(J45-I45+1))","v":1},{"$f":"ROUNDUP(K45*2200*H45/365*20,0)/20","v":0}]
[null,null,null,null,null,{"$f":"E46-D46","v":0},null,{"$f":" IF(F46>0,ROUNDUP(G46/F46,6),0)","v":0},null,null,{"$f":"IF(SUM(J46-I46+1)>365,365,SUM(J46-I46+1))","v":1},{"$f":"ROUNDUP(K46*2200*H46/365*20,0)/20","v":0}]
[null,null,null,null,null,{"$f":"E47-D47","v":0},null,{"$f":" IF(F47>0,ROUNDUP(G47/F47,6),0)","v":0},null,null,{"$f":"IF(SUM(J47-I47+1)>365,365,SUM(J47-I47+1))","v":1},0]
[null,null,null,null,null,0,null,0,null,null,1,0]
[null,null,null,null,null,0,null,0,null,null,1,0]
[null,null,null,null,null,0,null,0,null,null,1,0]
[null,null,null,null,null,0,null,0,null,null,1,0]
[null,null,null,null,null,0,null,0,null,null,1,0]
[null,null,null,null,null,0,null,0,null,null,1,0]
[null,null,null,null,null,0,null,0,null,null,1,0]
[null,null,null,null,null,0,null,0,null,null,1,0]
[null,null,null,null,null,{"$f":"E56-D56","v":0},null,{"$f":" IF(F56>0,ROUNDUP(G56/F56,6),0)","v":0},null,null,{"$f":"IF(SUM(J56-I56+1)>365,365,SUM(J56-I56+1))","v":1},0]
[null,null,null,null,null,0,null,0,null,null,1,0]
[null,null,null,null,null,0,null,0,null,null,1,0]
[null,null,null,null,null,0,null,0,null,null,1,0]
[null,null,null,null,null,0,null,0,null,null,1,0]
[null,null,null,null,null,0,null,0,null,null,1,0]
[null,null,null,null,null,0,null,0,null,null,1,0]
[null,null,null,null,null,0,null,0,null,null,1,0]
[null,null,null,null,null,0,null,0,null,null,1,0]
[null,null,null,null,null,{"$f":"E65-D65","v":0},null,{"$f":" IF(F65>0,ROUNDUP(G65/F65,6),0)","v":0},null,null,{"$f":"IF(SUM(J65-I65+1)>365,365,SUM(J65-I65+1))","v":1},0]
[null,null,null,null,null,0,null,0,null,null,1,0]
[null,null,null,null,null,0,null,0,null,null,1,0]
[null,null,null,null,null,0,null,0,null,null,1,0]
[null,null,null,null,null,0,null,0,null,null,1,0]
[null,null,null,null,null,0,null,0,null,null,1,0]
[null,null,null,null,null,0,null,0,null,null,1,0]
[null,null,null,null,null,0,null,0,null,null,1,0]
[null,null,null,null,null,0,null,0,null,null,1,0]
[null,null,null,null,null,0,null,0,null,null,1,0]
[null,null,null,null,null,0,null,0,null,null,1,0]
[null,null,null,null,null,0,null,0,null,null,1,{"$f":"ROUNDUP(K76*2200*H76/365*20,0)/20","v":0}]
[]
[null,null,null,null,null,null,null,null,null,null,null,{"$f":"SUM(L42:L74)","v":0}]
[]
["1) = jour, mois, année",null,null,null,null,null,null,null,null,"Total",null,{"$f":"L78+L37","v":0}]
[]
[]
[]
["N° matricule","Plaque de","Marque ","Km au 1.1","Km au 31.12","Kilomé-","Km en","Pourcen-","immatriculé",null,"Total "]
["selon permis","contrôle",null,"ou lors de","ou lors mise","trage","service ","tage","du","au","jours","Montant"]
["de circulation",null,null,"l'immatric.","hors circul.","annuel","de ligne",null,"(J.M.A. 1)"]
[null,null,null,null,null,{"$f":"E87-D87","v":0},null,{"$f":" IF(F87>0,ROUNDUP(G87/F87,6),0)","v":0},null,null,{"$f":"IF(SUM(J87-I87+1)>365,365,SUM(J87-I87+1))","v":1},{"$f":"ROUNDUP(K87*2200*H87/365*20,0)/20","v":0}]
[null,null,null,null,null,{"$f":"E88-D88","v":0},null,0,null,null,1,{"$f":"ROUNDUP(K88*2200*H88/365*20,0)/20","v":0}]
[null,null,null,null,null,0,null,0,null,null,1,{"$f":"ROUNDUP(K89*2200*H89/365*20,0)/20","v":0}]
[null,null,null,null,null,0,null,0,null,null,1,0]
[null,null,null,null,null,0,null,0,null,null,1,0]
[null,null,null,null,null,0,null,0,null,null,1,0]
[null,null,null,null,null,0,null,0,null,null,1,0]
[null,null,null,null,null,0,null,0,null,null,1,0]
[null,null,null,null,null,0,null,0,null,null,1,0]
[null,null,null,null,null,0,null,0,null,null,1,0]
[null,null,null,null,null,0,null,0,null,null,1,0]
[null,null,null,null,null,0,null,0,null,null,1,0]
[null,null,null,null,null,0,null,0,null,null,1,0]
[null,null,null,null,null,0,null,0,null,null,1,0]
[null,null,null,null,null,0,null,0,null,null,1,0]
[null,null,null,null,null,0,null,0,null,null,1,0]
[null,null,null,null,null,{"$f":"E103-D103","v":0},null,{"$f":" IF(F103>0,ROUNDUP(G103/F103,6),0)","v":0},null,null,{"$f":"IF(SUM(J103-I103+1)>365,365,SUM(J103-I103+1))","v":1},0]
[null,null,null,null,null,{"$f":"E104-D104","v":0},null,{"$f":" IF(F104>0,ROUNDUP(G104/F104,6),0)","v":0},null,null,{"$f":"IF(SUM(J104-I104+1)>365,365,SUM(J104-I104+1))","v":1},0]
[null,null,null,null,null,{"$f":"E105-D105","v":0},null,{"$f":" IF(F105>0,ROUNDUP(G105/F105,6),0)","v":0},null,null,{"$f":"IF(SUM(J105-I105+1)>365,365,SUM(J105-I105+1))","v":1},0]
[null,null,null,null,null,{"$f":"E106-D106","v":0},null,{"$f":" IF(F106>0,ROUNDUP(G106/F106,6),0)","v":0},null,null,{"$f":"IF(SUM(J106-I106+1)>365,365,SUM(J106-I106+1))","v":1},0]
[null,null,null,null,null,{"$f":"E107-D107","v":0},null,{"$f":" IF(F107>0,ROUNDUP(G107/F107,6),0)","v":0},null,null,{"$f":"IF(SUM(J107-I107+1)>365,365,SUM(J107-I107+1))","v":1},0]
[null,null,null,null,null,{"$f":"E108-D108","v":0},null,{"$f":" IF(F108>0,ROUNDUP(G108/F108,6),0)","v":0},null,null,{"$f":"IF(SUM(J108-I108+1)>365,365,SUM(J108-I108+1))","v":1},0]
[null,null,null,null,null,0,null,0,null,null,1,0]
[null,null,null,null,null,0,null,0,null,null,1,0]
[null,null,null,null,null,0,null,0,null,null,1,0]
[null,null,null,null,null,0,null,0,null,null,1,0]
[null,null,null,null,null,0,null,0,null,null,1,0]
[null,null,null,null,null,0,null,0,null,null,1,0]
[null,null,null,null,null,0,null,0,null,null,1,0]
[null,null,null,null,null,0,null,0,null,null,1,0]
[null,null,null,null,null,0,null,0,null,null,1,0]
[null,null,null,null,null,0,null,0,null,null,1,0]
[null,null,null,null,null,0,null,0,null,null,1,{"$f":"ROUNDUP(K119*2200*H119/365*20,0)/20","v":0}]
[]
[null,null,null,null,null,null,null,null,null,null,null,{"$f":"SUM(L85:L117)","v":0}]
[]
["1) = jour, mois, année",null,null,null,null,null,null,null,null,"Total",null,{"$f":"L121+L78+L37","v":0}]

{"sheet":"über 8,5 - 18 t","index":2,"n_rows":125,"n_cols":12,"rows_kept":125,"cut":false,"hidden":false,"merged":[]}
[]
[]
[]
[]
[]
["Déclaration pour le remboursement pour véhicules d'un poids total de plus de 8,5 t jusqu'à 19,5 t au taux de 3300 fr"]
[]
["N° matricule","Plaque de","Marque ","Km au 1.1","Km au 31.12","Kilomé-","Km en","Pourcen-","immatriculé",null,"Total "]
["selon permis","contrôle",null,"ou lors de","ou lors mise","trage","service ","tage","du","au","jours","Montant"]
["de circulation",null,null,"l'immatric.","hors circul.","annuel","de ligne",null,"(J.M.A. 1)"]
[null,null,null,null,null,{"$f":"E11-D11","v":0},null,{"$f":" IF(F11>0,ROUNDUP(G11/F11,6),0)","v":0},null,null,{"$f":"IF(SUM(J11-I11+1)>365,365,SUM(J11-I11+1))","v":1},{"$f":"ROUNDUP(K11*3300*H11/365*20,0)/20","v":0}]
[null,null,null,null,null,{"$f":"E12-D12","v":0},null,0,null,null,1,{"$f":"ROUNDUP(K12*3300*H12/365*20,0)/20","v":0}]
[null,null,null,null,null,0,null,0,null,null,1,{"$f":"ROUNDUP(K13*3300*H13/365*20,0)/20","v":0}]
[null,null,null,null,null,0,null,0,null,null,1,0]
[null,null,null,null,null,{"$f":"E15-D15","v":0},null,{"$f":" IF(F15>0,ROUNDUP(G15/F15,6),0)","v":0},null,null,{"$f":"IF(SUM(J15-I15+1)>365,365,SUM(J15-I15+1))","v":1},{"$f":"ROUNDUP(K15*3300*H15/365*20,0)/20","v":0}]
[null,null,null,null,null,0,null,0,null,null,1,0]
[null,null,null,null,null,0,null,0,null,null,1,0]
[null,null,null,null,null,0,null,0,null,null,1,0]
[null,null,null,null,null,0,null,0,null,null,1,0]
[null,null,null,null,null,0,null,0,null,null,1,0]
[null,null,null,null,null,0,null,0,null,null,1,0]
[null,null,null,null,null,0,null,0,null,null,1,0]
[null,null,null,null,null,0,null,0,null,null,1,0]
[null,null,null,null,null,0,null,0,null,null,1,0]
[null,null,null,null,null,0,null,0,null,null,1,0]
[null,null,null,null,null,0,null,0,null,null,1,0]
[null,null,null,null,null,0,null,0,null,null,1,0]
[null,null,null,null,null,0,null,0,null,null,1,0]
[null,null,null,null,null,0,null,0,null,null,1,0]
[null,null,null,null,null,0,null,0,null,null,1,0]
[null,null,null,null,null,0,null,0,null,null,1,0]
[null,null,null,null,null,0,null,0,null,null,1,0]
[null,null,null,null,null,0,null,0,null,null,1,0]
[null,null,null,null,null,0,null,0,null,null,1,0]
[null,null,null,null,null,0,null,0,null,null,1,0]
[null,null,null,null,null,0,null,0,null,null,1,{"$f":"ROUNDUP(K36*3300*H36/365*20,0)/20","v":0}]
[]
["1) = jour, mois, année"]
[null,null,null,null,null,null,null,null,null,"Total",null,{"$f":"SUM(L11:L36)","v":0}]
[]
[]
[]
["N° matricule","Plaque de","Marque ","Km au 1.1","Km au 31.12","Kilomé-","Km en","Pourcen-","immatriculé",null,"Total "]
["selon permis","contrôle",null,"ou lors de","ou lors mise","trage","service ","tage","du","au","jours","Montant"]
["de circulation",null,null,"l'immatric.","hors circul.","annuel","de ligne",null,"(J.M.A. 1)"]
[null,null,null,null,null,{"$f":"E46-D46","v":0},null,{"$f":" IF(F46>0,ROUNDUP(G46/F46,6),0)","v":0},null,null,{"$f":"IF(SUM(J46-I46+1)>365,365,SUM(J46-I46+1))","v":1},{"$f":"ROUNDUP(K46*3300*H46/365*20,0)/20","v":0}]
[null,null,null,null,null,{"$f":"E47-D47","v":0},null,{"$f":" IF(F47>0,ROUNDUP(G47/F47,6),0)","v":0},null,null,{"$f":"IF(SUM(J47-I47+1)>365,365,SUM(J47-I47+1))","v":1},{"$f":"ROUNDUP(K47*3300*H47/365*20,0)/20","v":0}]
[null,null,null,null,null,{"$f":"E48-D48","v":0},null,{"$f":" IF(F48>0,ROUNDUP(G48/F48,6),0)","v":0},null,null,{"$f":"IF(SUM(J48-I48+1)>365,365,SUM(J48-I48+1))","v":1},0]
[null,null,null,null,null,{"$f":"E49-D49","v":0},null,{"$f":" IF(F49>0,ROUNDUP(G49/F49,6),0)","v":0},null,null,{"$f":"IF(SUM(J49-I49+1)>365,365,SUM(J49-I49+1))","v":1},0]
[null,null,null,null,null,0,null,0,null,null,1,0]
[null,null,null,null,null,0,null,0,null,null,1,0]
[null,null,null,null,null,0,null,0,null,null,1,0]
[null,null,null,null,null,0,null,0,null,null,1,0]
[null,null,null,null,null,0,null,0,null,null,1,0]
[null,null,null,null,null,0,null,0,null,null,1,0]
[null,null,null,null,null,0,null,0,null,null,1,0]
[null,null,null,null,null,0,null,0,null,null,1,0]
[null,null,null,null,null,0,null,0,null,null,1,0]
[null,null,null,null,null,0,null,0,null,null,1,0]
[null,null,null,null,null,0,null,0,null,null,1,0]
[null,null,null,null,null,0,null,0,null,null,1,0]
[null,null,null,null,null,0,null,0,null,null,1,0]
[null,null,null,null,null,0,null,0,null,null,1,0]
[null,null,null,null,null,0,null,0,null,null,1,0]
[null,null,null,null,null,0,null,0,null,null,1,0]
[null,null,null,null,null,0,null,0,null,null,1,0]
[null,null,null,null,null,0,null,0,null,null,1,0]
[null,null,null,null,null,0,null,0,null,null,1,0]
[null,null,null,null,null,0,null,0,null,null,1,0]
[null,null,null,null,null,0,null,0,null,null,1,0]
[null,null,null,null,null,0,null,0,null,null,1,0]
[null,null,null,null,null,0,null,0,null,null,1,0]
[null,null,null,null,null,0,null,0,null,null,1,0]
[null,null,null,null,null,0,null,0,null,null,1,0]
[null,null,null,null,null,0,null,0,null,null,1,0]
[null,null,null,null,null,0,null,0,null,null,1,0]
[null,null,null,null,null,0,null,0,null,null,1,0]
[null,null,null,null,null,0,null,0,null,null,1,{"$f":"ROUNDUP(K78*3300*H78/365*20,0)/20","v":0}]
[]
[null,null,null,null,null,null,null,null,null,null,null,{"$f":"SUM(L46:L78)","v":0}]
["1) = jour, mois, année"]
[null,null,null,null,null,null,null,null,null,"Total",null,{"$f":"L39+L80","v":0}]
[]
[]
[]
["N° matricule","Plaque de","Marque ","Km au 1.1","Km au 31.12","Kilomé-","Km en","Pourcen-","immatriculé",null,"Total "]
["selon permis","contrôle",null,"ou lors de","ou lors mise","trage","service ","tage","du","au","jours","Montant"]
["de circulation",null,null,"l'immatric.","hors circul.","annuel","de ligne",null,"(J.M.A. 1)"]
[null,null,null,null,null,{"$f":"E89-D89","v":0},null,{"$f":" IF(F89>0,ROUNDUP(G89/F89,6),0)","v":0},null,null,{"$f":"IF(SUM(J89-I89+1)>365,365,SUM(J89-I89+1))","v":1},{"$f":"ROUNDUP(K89*3300*H89/365*20,0)/20","v":0}]
[null,null,null,null,null,{"$f":"E90-D90","v":0},null,0,null,null,1,{"$f":"ROUNDUP(K90*3300*H90/365*20,0)/20","v":0}]
[null,null,null,null,null,0,null,0,null,null,1,0]
[null,null,null,null,null,0,null,0,null,null,1,0]
[null,null,null,null,null,0,null,0,null,null,1,0]
[null,null,null,null,null,0,null,0,null,null,1,0]
[null,null,null,null,null,0,null,0,null,null,1,0]
[null,null,null,null,null,0,null,0,null,null,1,0]
[null,null,null,null,null,0,null,0,null,null,1,0]
[null,null,null,null,null,0,null,0,null,null,1,0]
[null,null,null,null,null,0,null,0,null,null,1,0]
[null,null,null,null,null,0,null,0,null,null,1,0]
[null,null,null,null,null,0,null,0,null,null,1,0]
[null,null,null,null,null,0,null,0,null,null,1,0]
[null,null,null,null,null,0,null,0,null,null,1,0]
[null,null,null,null,null,0,null,0,null,null,1,0]
[null,null,null,null,null,{"$f":"E105-D105","v":0},null,{"$f":" IF(F105>0,ROUNDUP(G105/F105,6),0)","v":0},null,null,{"$f":"IF(SUM(J105-I105+1)>365,365,SUM(J105-I105+1))","v":1},0]
[null,null,null,null,null,{"$f":"E106-D106","v":0},null,{"$f":" IF(F106>0,ROUNDUP(G106/F106,6),0)","v":0},null,null,{"$f":"IF(SUM(J106-I106+1)>365,365,SUM(J106-I106+1))","v":1},0]
[null,null,null,null,null,{"$f":"E107-D107","v":0},null,{"$f":" IF(F107>0,ROUNDUP(G107/F107,6),0)","v":0},null,null,{"$f":"IF(SUM(J107-I107+1)>365,365,SUM(J107-I107+1))","v":1},0]
[null,null,null,null,null,{"$f":"E108-D108","v":0},null,{"$f":" IF(F108>0,ROUNDUP(G108/F108,6),0)","v":0},null,null,{"$f":"IF(SUM(J108-I108+1)>365,365,SUM(J108-I108+1))","v":1},0]
[null,null,null,null,null,{"$f":"E109-D109","v":0},null,{"$f":" IF(F109>0,ROUNDUP(G109/F109,6),0)","v":0},null,null,{"$f":"IF(SUM(J109-I109+1)>365,365,SUM(J109-I109+1))","v":1},0]
[null,null,null,null,null,{"$f":"E110-D110","v":0},null,{"$f":" IF(F110>0,ROUNDUP(G110/F110,6),0)","v":0},null,null,{"$f":"IF(SUM(J110-I110+1)>365,365,SUM(J110-I110+1))","v":1},0]
[null,null,null,null,null,0,null,0,null,null,1,0]
[null,null,null,null,null,0,null,0,null,null,1,0]
[null,null,null,null,null,0,null,0,null,null,1,0]
[null,null,null,null,null,0,null,0,null,null,1,0]
[null,null,null,null,null,0,null,0,null,null,1,0]
[null,null,null,null,null,0,null,0,null,null,1,0]
[null,null,null,null,null,0,null,0,null,null,1,0]
[null,null,null,null,null,0,null,0,null,null,1,0]
[null,null,null,null,null,0,null,0,null,null,1,0]
[null,null,null,null,null,0,null,0,null,null,1,0]
[null,null,null,null,null,0,null,0,null,null,1,{"$f":"ROUNDUP(K121*3300*H121/365*20,0)/20","v":0}]
[]
[null,null,null,null,null,null,null,null,null,null,null,{"$f":"SUM(L89:L121)","v":0}]
["1) = jour, mois, année"]
[null,null,null,null,null,null,null,null,null,"Total",null,{"$f":"L123+L80+L39","v":0}]

{"sheet":"über 18 - 26 t","index":3,"n_rows":129,"n_cols":12,"rows_kept":129,"cut":false,"hidden":false,"merged":[]}
[]
[]
[]
[]
[]
["Déclaration pour le remboursement pour véhicules d'un poids total de plus de 19,5 t jusqu'à 26 t au taux de 4400 fr"]
[]
["N° matricule","Plaque de","Marque ","Km au 1.1","Km au 31.12","Kilomé-","Km en","Pourcen-","immatriculé",null,"Total "]
["selon permis","contrôle",null,"ou lors de","ou lors mise","trage","service ","tage","du","au","jours","Montant"]
["de circulation",null,null,"l'immatric.","hors circul.","annuel","de ligne",null,"(J.M.A. 1)"]
[null,null,null,null,null,{"$f":"E11-D11","v":0},null,{"$f":" IF(F11>0,ROUNDUP(G11/F11,6),0)","v":0},null,null,{"$f":"IF(SUM(J11-I11+1)>365,365,SUM(J11-I11+1))","v":1},{"$f":"ROUNDUP(K11*4400*H11/365*20,0)/20","v":0}]
[null,null,null,null,null,{"$f":"E12-D12","v":0},null,0,null,null,1,{"$f":"ROUNDUP(K12*4400*H12/365*20,0)/20","v":0}]
[null,null,null,null,null,0,null,0,null,null,1,{"$f":"ROUNDUP(K13*4400*H13/365*20,0)/20","v":0}]
[null,null,null,null,null,0,null,0,null,null,1,0]
[null,null,null,null,null,0,null,0,null,null,1,0]
[null,null,null,null,null,0,null,0,null,null,1,0]
[null,null,null,null,null,0,null,0,null,null,1,0]
[null,null,null,null,null,0,null,0,null,null,1,0]
[null,null,null,null,null,0,null,0,null,null,1,0]
[null,null,null,null,null,0,null,0,null,null,1,0]
[null,null,null,null,null,0,null,0,null,null,1,0]
[null,null,null,null,null,0,null,0,null,null,1,0]
[null,null,null,null,null,0,null,0,null,null,1,0]
[null,null,null,null,null,0,null,0,null,null,1,0]
[null,null,null,null,null,0,null,0,null,null,1,0]
[null,null,null,null,null,0,null,0,null,null,1,0]
[null,null,null,null,null,0,null,0,null,null,1,0]
[null,null,null,null,null,0,null,0,null,null,1,0]
[null,null,null,null,null,0,null,0,null,null,1,0]
[null,null,null,null,null,0,null,0,null,null,1,0]
[null,null,null,null,null,0,null,0,null,null,1,0]
[null,null,null,null,null,0,null,0,null,null,1,0]
[null,null,null,null,null,0,null,0,null,null,1,0]
[null,null,null,null,null,0,null,0,null,null,1,0]
[null,null,null,null,null,0,null,0,null,null,1,0]
[null,null,null,null,null,0,null,0,null,null,1,0]
[null,null,null,null,null,0,null,0,null,null,1,0]
[null,null,null,null,null,0,null,0,null,null,1,0]
[null,null,null,null,null,0,null,0,null,null,1,0]
[null,null,null,null,null,0,null,0,null,null,1,{"$f":"ROUNDUP(K40*4400*H40/365*20,0)/20","v":0}]
[]
["1) = jour, mois, année",null,null,null,null,null,null,null,null,"Total",null,{"$f":"SUM(L11:L40)","v":0}]
[]
[]
[]
[]
["N° matricule","Plaque de","Marque ","Km au 1.1","Km au 31.12","Kilomé-","Km en","Pourcen-","immatriculé",null,"Total "]
["selon permis","contrôle",null,"ou lors de","ou lors mise","trage","service ","tage","du","au","jours","Montant"]
["de circulation",null,null,"l'immatric.","hors circul.","annuel","de ligne",null,"(J.M.A. 1)"]
[null,null,null,null,null,{"$f":"E50-D50","v":0},null,{"$f":" IF(F50>0,ROUNDUP(G50/F50,6),0)","v":0},null,null,{"$f":"IF(SUM(J50-I50+1)>365,365,SUM(J50-I50+1))","v":1},{"$f":"ROUNDUP(K50*4400*H50/365*20,0)/20","v":0}]
[null,null,null,null,null,{"$f":"E51-D51","v":0},null,{"$f":" IF(F51>0,ROUNDUP(G51/F51,6),0)","v":0},null,null,{"$f":"IF(SUM(J51-I51+1)>365,365,SUM(J51-I51+1))","v":1},{"$f":"ROUNDUP(K51*4400*H51/365*20,0)/20","v":0}]
[null,null,null,null,null,{"$f":"E52-D52","v":0},null,{"$f":" IF(F52>0,ROUNDUP(G52/F52,6),0)","v":0},null,null,{"$f":"IF(SUM(J52-I52+1)>365,365,SUM(J52-I52+1))","v":1},0]
[null,null,null,null,null,{"$f":"E53-D53","v":0},null,{"$f":" IF(F53>0,ROUNDUP(G53/F53,6),0)","v":0},null,null,{"$f":"IF(SUM(J53-I53+1)>365,365,SUM(J53-I53+1))","v":1},0]
[null,null,null,null,null,0,null,0,null,null,1,0]
[null,null,null,null,null,0,null,0,null,null,1,0]
[null,null,null,null,null,0,null,0,null,null,1,0]
[null,null,null,null,null,0,null,0,null,null,1,0]
[null,null,null,null,null,0,null,0,null,null,1,0]
[null,null,null,null,null,0,null,0,null,null,1,0]
[null,null,null,null,null,0,null,0,null,null,1,0]
[null,null,null,null,null,0,null,0,null,null,1,0]
[null,null,null,null,null,0,null,0,null,null,1,0]
[null,null,null,null,null,0,null,0,null,null,1,0]
[null,null,null,null,null,0,null,0,null,null,1,0]
[null,null,null,null,null,0,null,0,null,null,1,0]
[null,null,null,null,null,0,null,0,null,null,1,0]
[null,null,null,null,null,0,null,0,null,null,1,0]
[null,null,null,null,null,0,null,0,null,null,1,0]
[null,null,null,null,null,0,null,0,null,null,1,0]
[null,null,null,null,null,0,null,0,null,null,1,0]
[null,null,null,null,null,0,null,0,null,null,1,0]
[null,null,null,null,null,0,null,0,null,null,1,0]
[null,null,null,null,null,0,null,0,null,null,1,0]
[null,null,null,null,null,0,null,0,null,null,1,0]
[null,null,null,null,null,0,null,0,null,null,1,0]
[null,null,null,null,null,0,null,0,null,null,1,0]
[null,null,null,null,null,0,null,0,null,null,1,0]
[null,null,null,null,null,0,null,0,null,null,1,0]
[null,null,null,null,null,0,null,0,null,null,1,0]
[null,null,null,null,null,0,null,0,null,null,1,0]
[null,null,null,null,null,0,null,0,null,null,1,0]
[null,null,null,null,null,0,null,0,null,null,1,{"$f":"ROUNDUP(K82*4400*H82/365*20,0)/20","v":0}]
[]
[null,null,null,null,null,null,null,null,null,null,null,{"$f":"SUM(L50:L82)","v":0}]
["1) = jour, mois, année"]
[null,null,null,null,null,null,null,null,null,"Total",null,{"$f":"L42+L84","v":0}]
[]
[]
[]
["N° matricule","Plaque de","Marque ","Km au 1.1","Km au 31.12","Kilomé-","Km en","Pourcen-","immatriculé",null,"Total "]
["selon permis","contrôle",null,"ou lors de","ou lors mise","trage","service ","tage","du","au","jours","Montant"]
["de circulation",null,null,"l'immatric.","hors circul.","annuel","de ligne",null,"(J.M.A. 1)"]
[null,null,null,null,null,{"$f":"E93-D93","v":0},null,{"$f":" IF(F93>0,ROUNDUP(G93/F93,6),0)","v":0},null,null,{"$f":"IF(SUM(J93-I93+1)>365,365,SUM(J93-I93+1))","v":1},{"$f":"ROUNDUP(K93*4400*H93/365*20,0)/20","v":0}]
[null,null,null,null,null,{"$f":"E94-D94","v":0},null,0,null,null,1,{"$f":"ROUNDUP(K94*4400*H94/365*20,0)/20","v":0}]
[null,null,null,null,null,0,null,0,null,null,1,0]
[null,null,null,null,null,0,null,0,null,null,1,0]
[null,null,null,null,null,0,null,0,null,null,1,0]
[null,null,null,null,null,0,null,0,null,null,1,0]
[null,null,null,null,null,0,null,0,null,null,1,0]
[null,null,null,null,null,0,null,0,null,null,1,0]
[null,null,null,null,null,0,null,0,null,null,1,0]
[null,null,null,null,null,0,null,0,null,null,1,0]
[null,null,null,null,null,0,null,0,null,null,1,0]
[null,null,null,null,null,0,null,0,null,null,1,0]
[null,null,null,null,null,0,null,0,null,null,1,0]
[null,null,null,null,null,0,null,0,null,null,1,0]
[null,null,null,null,null,0,null,0,null,null,1,0]
[null,null,null,null,null,0,null,0,null,null,1,0]
[null,null,null,null,null,{"$f":"E109-D109","v":0},null,{"$f":" IF(F109>0,ROUNDUP(G109/F109,6),0)","v":0},null,null,{"$f":"IF(SUM(J109-I109+1)>365,365,SUM(J109-I109+1))","v":1},0]
[null,null,null,null,null,{"$f":"E110-D110","v":0},null,{"$f":" IF(F110>0,ROUNDUP(G110/F110,6),0)","v":0},null,null,{"$f":"IF(SUM(J110-I110+1)>365,365,SUM(J110-I110+1))","v":1},0]
[null,null,null,null,null,{"$f":"E111-D111","v":0},null,{"$f":" IF(F111>0,ROUNDUP(G111/F111,6),0)","v":0},null,null,{"$f":"IF(SUM(J111-I111+1)>365,365,SUM(J111-I111+1))","v":1},0]
[null,null,null,null,null,{"$f":"E112-D112","v":0},null,{"$f":" IF(F112>0,ROUNDUP(G112/F112,6),0)","v":0},null,null,{"$f":"IF(SUM(J112-I112+1)>365,365,SUM(J112-I112+1))","v":1},0]
[null,null,null,null,null,{"$f":"E113-D113","v":0},null,{"$f":" IF(F113>0,ROUNDUP(G113/F113,6),0)","v":0},null,null,{"$f":"IF(SUM(J113-I113+1)>365,365,SUM(J113-I113+1))","v":1},0]
[null,null,null,null,null,{"$f":"E114-D114","v":0},null,{"$f":" IF(F114>0,ROUNDUP(G114/F114,6),0)","v":0},null,null,{"$f":"IF(SUM(J114-I114+1)>365,365,SUM(J114-I114+1))","v":1},0]
[null,null,null,null,null,0,null,0,null,null,1,0]
[null,null,null,null,null,0,null,0,null,null,1,0]
[null,null,null,null,null,0,null,0,null,null,1,0]
[null,null,null,null,null,0,null,0,null,null,1,0]
[null,null,null,null,null,0,null,0,null,null,1,0]
[null,null,null,null,null,0,null,0,null,null,1,0]
[null,null,null,null,null,0,null,0,null,null,1,0]
[null,null,null,null,null,0,null,0,null,null,1,0]
[null,null,null,null,null,0,null,0,null,null,1,0]
[null,null,null,null,null,0,null,0,null,null,1,0]
[null,null,null,null,null,0,null,0,null,null,1,{"$f":"ROUNDUP(K125*4400*H125/365*20,0)/20","v":0}]
[]
[null,null,null,null,null,null,null,null,null,null,null,{"$f":"SUM(L93:L125)","v":0}]
["1) = jour, mois, année"]
[null,null,null,null,null,null,null,null,null,"Total",null,{"$f":"L127+L86","v":0}]

{"sheet":"über 26 t","index":4,"n_rows":129,"n_cols":12,"rows_kept":129,"cut":false,"hidden":false,"merged":[]}
[]
[]
[]
[]
[]
["Déclaration pour le remboursement pour véhicules d'un poids total de plus de 26 t au taux de 5000 fr"]
[]
["N° matricule","Plaque de","Marque ","Km au 1.1","Km au 31.12","Kilomé-","Km en","Pourcen-","immatriculé",null,"Total "]
["selon permis","contrôle",null,"ou lors de","ou lors mise","trage","service ","tage","du","au","jours","Montant"]
["de circulation",null,null,"l'immatric.","hors circul.","annuel","de ligne",null,"(J.M.A. 1)"]
[null,null,null,null,null,{"$f":"E11-D11","v":0},null,{"$f":" IF(F11>0,ROUNDUP(G11/F11,6),0)","v":0},null,null,{"$f":"IF(SUM(J11-I11+1)>365,365,SUM(J11-I11+1))","v":1},{"$f":"ROUNDUP(K11*5000*H11/365*20,0)/20","v":0}]
[null,null,null,null,null,{"$f":"E12-D12","v":0},null,0,null,null,1,{"$f":"ROUNDUP(K12*5000*H12/365*20,0)/20","v":0}]
[null,null,null,null,null,0,null,0,null,null,1,{"$f":"ROUNDUP(K13*5000*H13/365*20,0)/20","v":0}]
[null,null,null,null,null,0,null,0,null,null,1,0]
[null,null,null,null,null,0,null,0,null,null,1,0]
[null,null,null,null,null,0,null,0,null,null,1,0]
[null,null,null,null,null,0,null,0,null,null,1,0]
[null,null,null,null,null,0,null,0,null,null,1,0]
[null,null,null,null,null,0,null,0,null,null,1,0]
[null,null,null,null,null,0,null,0,null,null,1,0]
[null,null,null,null,null,0,null,0,null,null,1,0]
[null,null,null,null,null,0,null,0,null,null,1,0]
[null,null,null,null,null,0,null,0,null,null,1,0]
[null,null,null,null,null,0,null,0,null,null,1,0]
[null,null,null,null,null,0,null,0,null,null,1,0]
[null,null,null,null,null,0,null,0,null,null,1,0]
[null,null,null,null,null,0,null,0,null,null,1,0]
[null,null,null,null,null,0,null,0,null,null,1,0]
[null,null,null,null,null,0,null,0,null,null,1,0]
[null,null,null,null,null,0,null,0,null,null,1,0]
[null,null,null,null,null,0,null,0,null,null,1,0]
[null,null,null,null,null,0,null,0,null,null,1,0]
[null,null,null,null,null,0,null,0,null,null,1,0]
[null,null,null,null,null,0,null,0,null,null,1,0]
[null,null,null,null,null,0,null,0,null,null,1,0]
[null,null,null,null,null,0,null,0,null,null,1,0]
[null,null,null,null,null,0,null,0,null,null,1,0]
[null,null,null,null,null,0,null,0,null,null,1,0]
[null,null,null,null,null,0,null,0,null,null,1,0]
[null,null,null,null,null,0,null,0,null,null,1,{"$f":"ROUNDUP(K40*5000*H40/365*20,0)/20","v":0}]
[]
["1) = jour, mois, année",null,null,null,null,null,null,null,null,"Total",null,{"$f":"SUM(L11:L40)","v":0}]
[]
[]
[]
[]
["N° matricule","Plaque de","Marque ","Km au 1.1","Km au 31.12","Kilomé-","Km en","Pourcen-","immatriculé",null,"Total "]
["selon permis","contrôle",null,"ou lors de","ou lors mise","trage","service ","tage","du","au","jours","Montant"]
["de circulation",null,null,"l'immatric.","hors circul.","annuel","de ligne",null,"(J.M.A. 1)"]
[null,null,null,null,null,{"$f":"E50-D50","v":0},null,{"$f":" IF(F50>0,ROUNDUP(G50/F50,6),0)","v":0},null,null,{"$f":"IF(SUM(J50-I50+1)>365,365,SUM(J50-I50+1))","v":1},{"$f":"ROUNDUP(K50*5000*H50/365*20,0)/20","v":0}]
[null,null,null,null,null,{"$f":"E51-D51","v":0},null,{"$f":" IF(F51>0,ROUNDUP(G51/F51,6),0)","v":0},null,null,{"$f":"IF(SUM(J51-I51+1)>365,365,SUM(J51-I51+1))","v":1},{"$f":"ROUNDUP(K51*5000*H51/365*20,0)/20","v":0}]
[null,null,null,null,null,{"$f":"E52-D52","v":0},null,{"$f":" IF(F52>0,ROUNDUP(G52/F52,6),0)","v":0},null,null,{"$f":"IF(SUM(J52-I52+1)>365,365,SUM(J52-I52+1))","v":1},0]
[null,null,null,null,null,{"$f":"E53-D53","v":0},null,{"$f":" IF(F53>0,ROUNDUP(G53/F53,6),0)","v":0},null,null,{"$f":"IF(SUM(J53-I53+1)>365,365,SUM(J53-I53+1))","v":1},0]
[null,null,null,null,null,0,null,0,null,null,1,0]
[null,null,null,null,null,0,null,0,null,null,1,0]
[null,null,null,null,null,0,null,0,null,null,1,0]
[null,null,null,null,null,0,null,0,null,null,1,0]
[null,null,null,null,null,0,null,0,null,null,1,0]
[null,null,null,null,null,0,null,0,null,null,1,0]
[null,null,null,null,null,0,null,0,null,null,1,0]
[null,null,null,null,null,0,null,0,null,null,1,0]
[null,null,null,null,null,0,null,0,null,null,1,0]
[null,null,null,null,null,0,null,0,null,null,1,0]
[null,null,null,null,null,0,null,0,null,null,1,0]
[null,null,null,null,null,0,null,0,null,null,1,0]
[null,null,null,null,null,0,null,0,null,null,1,0]
[null,null,null,null,null,0,null,0,null,null,1,0]
[null,null,null,null,null,0,null,0,null,null,1,0]
[null,null,null,null,null,0,null,0,null,null,1,0]
[null,null,null,null,null,0,null,0,null,null,1,0]
[null,null,null,null,null,0,null,0,null,null,1,0]
[null,null,null,null,null,0,null,0,null,null,1,0]
[null,null,null,null,null,0,null,0,null,null,1,0]
[null,null,null,null,null,0,null,0,null,null,1,0]
[null,null,null,null,null,0,null,0,null,null,1,0]
[null,null,null,null,null,0,null,0,null,null,1,0]
[null,null,null,null,null,0,null,0,null,null,1,0]
[null,null,null,null,null,0,null,0,null,null,1,0]
[null,null,null,null,null,0,null,0,null,null,1,0]
[null,null,null,null,null,0,null,0,null,null,1,0]
[null,null,null,null,null,0,null,0,null,null,1,0]
[null,null,null,null,null,0,null,0,null,null,1,{"$f":"ROUNDUP(K82*5000*H82/365*20,0)/20","v":0}]
[]
[null,null,null,null,null,null,null,null,null,null,null,{"$f":"SUM(L50:L82)","v":0}]
["1) = jour, mois, année"]
[null,null,null,null,null,null,null,null,null,"Total",null,{"$f":"L42+L84","v":0}]
[]
[]
[]
["N° matricule","Plaque de","Marque ","Km au 1.1","Km au 31.12","Kilomé-","Km en","Pourcen-","immatriculé",null,"Total "]
["selon permis","contrôle",null,"ou lors de","ou lors mise","trage","service ","tage","du","au","jours","Montant"]
["de circulation",null,null,"l'immatric.","hors circul.","annuel","de ligne",null,"(J.M.A. 1)"]
[null,null,null,null,null,{"$f":"E93-D93","v":0},null,{"$f":" IF(F93>0,ROUNDUP(G93/F93,6),0)","v":0},null,null,{"$f":"IF(SUM(J93-I93+1)>365,365,SUM(J93-I93+1))","v":1},{"$f":"ROUNDUP(K93*5000*H93/365*20,0)/20","v":0}]
[null,null,null,null,null,{"$f":"E94-D94","v":0},null,0,null,null,1,{"$f":"ROUNDUP(K94*5000*H94/365*20,0)/20","v":0}]
[null,null,null,null,null,0,null,0,null,null,1,0]
[null,null,null,null,null,0,null,0,null,null,1,0]
[null,null,null,null,null,0,null,0,null,null,1,0]
[null,null,null,null,null,0,null,0,null,null,1,0]
[null,null,null,null,null,0,null,0,null,null,1,0]
[null,null,null,null,null,0,null,0,null,null,1,0]
[null,null,null,null,null,0,null,0,null,null,1,0]
[null,null,null,null,null,0,null,0,null,null,1,0]
[null,null,null,null,null,0,null,0,null,null,1,0]
[null,null,null,null,null,0,null,0,null,null,1,0]
[null,null,null,null,null,0,null,0,null,null,1,0]
[null,null,null,null,null,0,null,0,null,null,1,0]
[null,null,null,null,null,0,null,0,null,null,1,0]
[null,null,null,null,null,0,null,0,null,null,1,0]
[null,null,null,null,null,{"$f":"E109-D109","v":0},null,{"$f":" IF(F109>0,ROUNDUP(G109/F109,6),0)","v":0},null,null,{"$f":"IF(SUM(J109-I109+1)>365,365,SUM(J109-I109+1))","v":1},0]
[null,null,null,null,null,{"$f":"E110-D110","v":0},null,{"$f":" IF(F110>0,ROUNDUP(G110/F110,6),0)","v":0},null,null,{"$f":"IF(SUM(J110-I110+1)>365,365,SUM(J110-I110+1))","v":1},0]
[null,null,null,null,null,{"$f":"E111-D111","v":0},null,{"$f":" IF(F111>0,ROUNDUP(G111/F111,6),0)","v":0},null,null,{"$f":"IF(SUM(J111-I111+1)>365,365,SUM(J111-I111+1))","v":1},0]
[null,null,null,null,null,{"$f":"E112-D112","v":0},null,{"$f":" IF(F112>0,ROUNDUP(G112/F112,6),0)","v":0},null,null,{"$f":"IF(SUM(J112-I112+1)>365,365,SUM(J112-I112+1))","v":1},0]
[null,null,null,null,null,{"$f":"E113-D113","v":0},null,{"$f":" IF(F113>0,ROUNDUP(G113/F113,6),0)","v":0},null,null,{"$f":"IF(SUM(J113-I113+1)>365,365,SUM(J113-I113+1))","v":1},0]
[null,null,null,null,null,{"$f":"E114-D114","v":0},null,{"$f":" IF(F114>0,ROUNDUP(G114/F114,6),0)","v":0},null,null,{"$f":"IF(SUM(J114-I114+1)>365,365,SUM(J114-I114+1))","v":1},0]
[null,null,null,null,null,0,null,0,null,null,1,0]
[null,null,null,null,null,0,null,0,null,null,1,0]
[null,null,null,null,null,0,null,0,null,null,1,0]
[null,null,null,null,null,0,null,0,null,null,1,0]
[null,null,null,null,null,0,null,0,null,null,1,0]
[null,null,null,null,null,0,null,0,null,null,1,0]
[null,null,null,null,null,0,null,0,null,null,1,0]
[null,null,null,null,null,0,null,0,null,null,1,0]
[null,null,null,null,null,0,null,0,null,null,1,0]
[null,null,null,null,null,0,null,0,null,null,1,0]
[null,null,null,null,null,0,null,0,null,null,1,{"$f":"ROUNDUP(K125*5000*H125/365*20,0)/20","v":0}]
[]
[null,null,null,null,null,null,null,null,null,null,null,{"$f":"SUM(L93:L125)","v":0}]
["1) = jour, mois, année"]
[null,null,null,null,null,null,null,null,null,"Total",null,{"$f":"L127+L86","v":0}]